fUSD/lending_fUSD_20240211
["ID","MTS","AMOUNT","RATE_DAILY","PERIOD"]
[313752027,1707670232493,-1579.86388507,0.00022998,2]
[313752028,1707670232502,-4644.1804937,0.00022998,2]
[313752029,1707670232512,-159661.38446088,0.00022998,2]
[313752030,1707670232521,-419.91356886,0.00022998,2]
[313752031,1707670232530,-264.5937254,0.00022998,2]
[313752032,1707670232540,-244.83631898,0.00022998,2]
[313752033,1707670232550,-500.0,0.00022998,2]
[313752034,1707670232559,-155.0,0.00022998,2]
[313752035,1707670232568,-182.27763606,0.00022998,2]
[313752036,1707670232578,-1816.12904558,0.00022998,2]
[313752037,1707670232587,-526.05562938,0.00022998,2]
[313752038,1707670232596,-5743.06806054,0.00022998,2]
[313752039,1707670232605,-311.20696792,0.00022998,2]
[313752040,1707670232614,-500.0,0.00022999,2]
[313752041,1707670232623,-500.0,0.00022999,2]
[313752042,1707670232632,-500.0,0.00022999,2]
[313752043,1707670232642,-500.0,0.00022999,2]
[313752044,1707670232651,-500.0,0.00022999,2]
[313752045,1707670232660,-450.58039729,0.00022999,2]
[313752046,1707670232669,-500.0,0.00022999,2]
[313752047,1707670232678,-500.0,0.00022999,2]
[313752048,1707670232687,-500.0,0.00022999,2]
[313752049,1707670232697,-150.0,0.00022999,2]
[313752050,1707670232706,-150.0,0.00022999,2]
[313752051,1707670232715,-150.0,0.00022999,2]
[313752052,1707670232724,-150.0,0.00022999,2]
[313752053,1707670232734,-150.0,0.00022999,2]
[313752054,1707670232743,-150.0,0.00022999,2]
[313752055,1707670232752,-176.98627561,0.00022999,2]
[313752056,1707670232761,-150.0,0.00022999,2]
[313752057,1707670232770,-150.0,0.00022999,2]
[313752058,1707670232779,-150.0,0.00022999,2]
[313752059,1707670232789,-150.0,0.00022999,2]
[313752060,1707670232799,-150.0,0.00022999,2]
[313752061,1707670232808,-150.0,0.00022999,2]
[313752062,1707670232818,-202.53049988,0.00022999,2]
[313752063,1707670232826,-250.28576934,0.00023,3]
[313752064,1707670232835,-353894.45383329,0.00023,2]
[313752065,1707670232844,-409206.23042051,0.00023,2]
[313752066,1707670232857,-36226.02117587,0.00023,2]
[313752067,1707670232869,-1547905.58525289,0.00023,2]
[313752068,1707670232888,-1506.50744281,0.00023,2]
[313752069,1707670232899,-10407.57571551,0.00023,2]
[313752070,1707670232943,-277263.49355281,0.00023,2]
[313752071,1707670232962,-1324.4017795,0.00023,2]
[313752072,1707670233048,-3237.59326357,0.00023,2]
[313752073,1707670237564,-1233.86748,0.00022998,3]
[313752074,1707670237577,-344.6811096,0.00022998,3]
[313752075,1707670237586,-778.45790524,0.00022998,3]
[313752076,1707670237596,-366.53685855,0.00023,2]
[313752077,1707670237607,-1267.65875993,0.00023,2]
[313752078,1707670237632,-343.36644218,0.00023,2]
[313752079,1707670237643,-846.249995,0.00023,2]
[313752080,1707670237654,-440.84044658,0.00023,2]
[313752081,1707670237689,-6869.88345719,0.00023,2]
[313752082,1707670237701,-804.528,0.00023,2]
[313752083,1707670237798,-177872.76875662,0.00023,2]
[313752084,1707670237810,-110524.53183996,0.00023,2]
[313752085,1707670237825,-68249.30644393,0.00023,2]
[313752086,1707670237836,-52008.34663342,0.00023,2]
[313752087,1707670237848,-81385.7117292,0.00023,2]
[313752088,1707670237860,-127419.34902043,0.00023,2]
[313752089,1707670237872,-69167.63816875,0.00023,2]
[313752090,1707670237885,-3153.28430224,0.00023,2]
[313752091,1707670237896,-363.61901928,0.00023,2]
[313752092,1707670237907,-3904907.80674753,0.00023,2]
[313752096,1707670237941,-603.45575644,0.00023,2]
[313752098,1707670237954,-324608.14932446,0.00023,2]
[313752102,1707670240106,-1620.76463165,0.00023,2]
[313752103,1707670240750,-27547.46876083,0.00023,2]
[313752104,1707670240768,-316.59625256,0.00023,2]
[313752105,1707670240784,-297.27599253,0.00023,2]
[313752106,1707670240844,-28113.77721157,0.00023,2]
[313752107,1707670240938,-4008.52300347,0.00023,2]
[313752108,1707670240951,-308.16806821,0.00023,2]
[313752109,1707670241081,-5835113.62686058,0.00023,2]
[313752110,1707670241091,-5684852.71233378,0.00023,2]
[313752111,1707670241100,-2000.0,0.00023,2]
[313752112,1707670241110,-200.0,0.00023,2]
[313752113,1707670241119,-2000.0,0.00023,2]
[313752114,1707670241128,-200.0,0.00023,2]
[313752115,1707670241137,-10173299.12925317,0.00023,2]
[313752116,1707670241148,-200.0,0.00023,2]
[313752117,1707670241157,-500.0,0.00023014,2]
[313752118,1707670241166,-1494.1330697,0.00023033,2]
[313752119,1707670241175,-2000.0,0.0002323,2]
[313752120,1707670241184,-200.0,0.0002323,2]
[313752121,1707670241192,-2000.0,0.0002323,2]
[313752122,1707670241202,-200.0,0.0002323,2]
[313752123,1707670241211,-200.0,0.0002323,2]
[313752124,1707670241223,-300.0,0.00023277,2]
[313752125,1707670241233,-2000.0,0.00023462,2]
[313752126,1707670241243,-200.0,0.00023462,2]
[313752127,1707670241257,-2000.0,0.00023462,2]
[313752128,1707670241267,-200.0,0.00023462,2]
[313752129,1707670241276,-200.0,0.00023462,2]
[313752130,1707670241285,-205.0,0.00023567,2]
[313752131,1707670241295,-172.6,0.00023617,2]
[313752132,1707670241303,-200.0,0.00023697,2]
[313752133,1707670241313,-2000.0,0.00023697,2]
[313752134,1707670241323,-200.0,0.00023697,2]
[313752135,1707670241332,-200.0,0.00023934,2]
[313752136,1707670241341,-879.41635385,0.00023934,2]
[313752137,1707670241351,-200.0,0.00023934,2]
[313752138,1707670241360,-243.81,0.00023996,2]
[313752139,1707670241369,-202.13886159,0.00024,2]
[313752140,1707670241378,-517.78567072,0.00024,2]
[313752141,1707670241387,-304.24093933,0.00024,2]
[313752142,1707670241397,-1529.61,0.00024078,2]
[313752143,1707670241406,-296.52117561,0.000241,2]
[313752144,1707670241415,-167.15,0.00024263,2]
[313752145,1707670241425,-175.79875916,0.000243,2]
[313752146,1707670241436,-175.79875914,0.00024301,2]
[313752147,1707670241447,-175.79875914,0.00024301,2]
[313752148,1707670241457,-6753.0,0.00024384,2]
[313752149,1707670241468,-5440.38,0.00024384,2]
[313752150,1707670241477,-525.5,0.00024436,2]
[313752151,1707670241488,-737.6,0.00024541,2]
[313752152,1707670241498,-409.92,0.00024632,2]
[313752153,1707670241509,-300.0,0.00024647,2]
[313752154,1707670241518,-250.0,0.00024658,2]
[313752155,1707670241528,-271979.93663431,0.0002479,2]
[313752156,1707670241538,-119185.95151352,0.0002479,2]
[313752160,1707670242620,-22181.92600141,0.0002479,2]
[313752161,1707670242633,-893.90033533,0.0002479,2]
[313752162,1707670242666,-2541.61400036,0.0002479,2]
[313752163,1707670242725,-3387.56402819,0.0002479,2]
[313752164,1707670242738,-3434.83696936,0.0002479,2]
[313752169,1707670244055,-259.57529053,0.00022999,2]
[313752170,1707670245850,-360.54082519,0.00022999,2]
[313752171,1707670245859,-9766.56431416,0.0002479,2]
[313752172,1707670245870,-1694.65012304,0.0002479,2]
[313752173,1707670245881,-533.64104327,0.0002479,2]
[313752180,1707670313113,1096.55829932,0.0002,7]
[313752190,1707670447699,4347.66406373,0.0002,2]
[313752201,1707670581622,538.78,0.00021326,2]
[313752215,1707670834374,205.0,0.00021567,2]
[313752222,1707670962029,1519.81,0.00022398,2]
[313752224,1707670969599,250.0,0.00022369,2]
[313752227,1707671004708,2000.0,0.00022401,2]
[313752229,1707671029365,20313.3805,0.00022399,2]
[313752233,1707671098328,511.84,0.00020636,2]
[313752238,1707671158115,500.0,0.00022332,2]
[313752241,1707671194000,205.0,0.00022314,2]
[313752244,1707671229165,200.0,0.00022386,2]
[313752249,1707671306689,186.13,0.00022394,10]
[313752263,1707671353597,250.0,0.00022326,2]
[313752265,1707671357410,245.96,0.00022393,2]
[313752294,1707671432260,-250.4553575,0.00022409,2]
[313752295,1707671432269,-436.36606783,0.0002241,2]
[313752296,1707671432278,-494.56295727,0.00022411,2]
[313752297,1707671432288,-500.0,0.00022426,2]
[313752298,1707671432297,-172.6,0.00022467,2]
[313752299,1707671432306,-363.35841472,0.00022497,2]
[313752300,1707671432316,-490.73912839,0.00022497,2]
[313752301,1707671432325,-216.09925222,0.00022497,2]
[313752302,1707671432334,-155.0,0.00022497,2]
[313752303,1707671432344,-300.0,0.00022498,2]
[313752304,1707671432353,-1457.11882207,0.00022499,2]
[313752309,1707671437910,-24070.49876998,0.00022499,2]
[313752310,1707671438091,-2011.08092982,0.00022499,2]
[313752311,1707671438102,-3654.79624534,0.00022499,2]
[313752312,1707671438114,-3413.71970818,0.00022499,2]
[313752550,1707671440370,-1942.37721319,0.00022499,2]
[313752559,1707671440441,-300.884,0.00022499,2]
[313752667,1707671441566,-387.9621,0.00022499,2]
[313752674,1707671441625,-1046.7296758,0.00022499,2]
[313752783,1707671443203,-90572.10934662,0.00022499,2]
[313752784,1707671443212,-2366.76421035,0.00022502,2]
[313752785,1707671443222,-1300.15497804,0.00022504,2]
[313752786,1707671443230,-754.04,0.0002262,2]
[313752787,1707671443240,-504.79,0.0002262,2]
[313752788,1707671443249,-188.4001,0.0002267,2]
[313752789,1707671443258,-151.87,0.00022761,2]
[313752790,1707671443267,-322.42972552,0.000229,3]
[313752791,1707671443277,-2000.0,0.000229,3]
[313752792,1707671443287,-511.84,0.000229,2]
[313752793,1707671443296,-117529.34958098,0.0002296,2]
[313752794,1707671443305,-151.87,0.00022998,2]
[313752795,1707671443314,-710.37,0.00022998,2]
[313752796,1707671443322,-592.89,0.00022998,2]
[313752797,1707671443331,-297223.52611267,0.00023,2]
[313752798,1707671443340,-500.0,0.00023,2]
[313752799,1707671443349,-500.0,0.00023014,2]
[313752800,1707671443358,-162.54,0.00023029,2]
[313752801,1707671443367,-151.87,0.00023235,2]
[313752802,1707671443376,-167.15,0.0002343,2]
[313752803,1707671443385,-151.87,0.00023472,2]
[313752804,1707671443394,-151.87,0.0002371,2]
[313752805,1707671443403,-165.79,0.00023849,2]
[313752806,1707671443412,-151.87,0.00023947,2]
[313752807,1707671443423,-517.78567072,0.00024,2]
[313752808,1707671443432,-202.13886159,0.00024,2]
[313752809,1707671443441,-150.0,0.00024013,2]
[313752810,1707671443452,-1519.81,0.00024042,2]
[313752811,1707671443461,-205.0,0.00024109,4]
[313752812,1707671443470,-279.3330071,0.00024383,4]
[313752813,1707671443479,-5627.5,0.00024384,2]
[313752814,1707671443488,-4533.65,0.00024384,2]
[313752815,1707671443497,-420.0,0.00024436,2]
[313752816,1707671443507,-248.32576852,0.0002454,2]
[313752817,1707671443516,-186.13,0.00024588,10]
[313752818,1707671443526,-168.15,0.00024649,2]
[313752819,1707671443535,-250.0,0.00024658,2]
[313752820,1707671443546,-173.75041801,0.0002469,2]
[313752821,1707671443557,-154.60172415,0.0002469,2]
[313752822,1707671443567,-2000.0,0.0002469,3]
[313752823,1707671443577,-3000.0,0.000247,2]
[313752824,1707671443586,-3000.0,0.0002471,2]
[313752825,1707671443595,-3081.369315,0.0002472,2]
[313752826,1707671443605,-1782.54642412,0.00024788,2]
[313752827,1707671443614,-547.49588912,0.00024788,2]
[313752828,1707671443623,-155.0,0.00024788,2]
[313752829,1707671443632,-155.0,0.00024788,2]
[313752830,1707671443642,-607.23680302,0.00024788,2]
[313752831,1707671443651,-10804.18072179,0.00024788,2]
[313752832,1707671443660,-297.10793557,0.00024788,2]
[313752833,1707671443671,-228.13113806,0.00024788,2]
[313752834,1707671443680,-265.18556568,0.00024789,2]
[313752835,1707671443689,-151.5005338,0.00024789,2]
[313752836,1707671443698,-3313.68237718,0.00024789,2]
[313752837,1707671443708,-3160.09065112,0.00024789,2]
[313752838,1707671443717,-2607.54162794,0.0002479,2]
[313752839,1707671443725,-1735.41475496,0.0002479,2]
[313752840,1707671443734,-4729.6832183,0.00024866,2]
[313752841,1707671443743,-4378.0,0.000249,2]
[313752842,1707671443753,-699.85218736,0.00025,2]
[313752843,1707671443765,-305.09660322,0.00025,2]
[313752844,1707671443775,-651.15796803,0.00025,2]
[313752845,1707671443784,-8593.05952676,0.00025,4]
[313752846,1707671443793,-938.20137126,0.00025,2]
[313752847,1707671443802,-946.10396075,0.00025,2]
[313752848,1707671443811,-168.26749515,0.00025,2]
[313752849,1707671443821,-1591.80252541,0.00025,2]
[313752850,1707671443832,-1909.40818711,0.00025,2]
[313752851,1707671443843,-159.89262524,0.00025,2]
[313752852,1707671443855,-1254.75190359,0.00025,2]
[313752853,1707671443865,-1250.0,0.00025,3]
[313752854,1707671443875,-3000.0,0.00025,2]
[313752855,1707671443884,-22437.0,0.00025,2]
[313752856,1707671443893,-276.330769,0.00025,2]
[313752857,1707671443903,-3000.0,0.0002501,2]
[313752858,1707671443912,-3000.0,0.0002502,2]
[313752859,1707671443922,-3000.0,0.0002503,2]
[313752860,1707671443932,-3000.0,0.0002504,2]
[313752861,1707671443942,-3000.0,0.0002505,2]
[313752862,1707671443951,-3000.0,0.0002506,2]
[313752863,1707671443960,-3000.0,0.0002507,2]
[313752864,1707671443969,-3000.0,0.0002508,2]
[313752865,1707671443978,-3000.0,0.0002509,2]
[313752866,1707671443987,-3000.0,0.000251,2]
[313752867,1707671443996,-3000.0,0.0002511,2]
[313752868,1707671444005,-3000.0,0.0002512,2]
[313752869,1707671444014,-3000.0,0.0002513,2]
[313752870,1707671444023,-3000.0,0.0002514,2]
[313752871,1707671444032,-3000.0,0.0002515,2]
[313752872,1707671444041,-3000.0,0.0002516,2]
[313752873,1707671444050,-511.84,0.00025164,2]
[313752874,1707671444060,-3000.0,0.0002517,2]
[313752875,1707671444070,-3346.128033,0.0002518,2]
[313752876,1707671444079,-245.96,0.00025193,2]
[313752877,1707671444089,-162.54,0.00025332,2]
[313752878,1707671444099,-167.15,0.00025364,2]
[313752879,1707671444108,-150.0,0.00025383,2]
[313752880,1707671444117,-754.04,0.00025448,2]
[313752881,1707671444127,-1000.0,0.000255,2]
[313752882,1707671444136,-158.92688365,0.000256,2]
[313752883,1707671444146,-216.361,0.00025661,2]
[313752884,1707671444155,-205.804,0.00025661,2]
[313752885,1707671444167,-1946.0,0.00025661,2]
[313752886,1707671444176,-731.179,0.00025661,2]
[313752887,1707671444186,-259.915,0.00025661,2]
[313752888,1707671444195,-1010.074,0.00025661,2]
[313752889,1707671444204,-859.0,0.00025661,2]
[313752890,1707671444213,-243.035,0.00025661,2]
[313752891,1707671444223,-371.021,0.00025661,2]
[313752892,1707671444231,-1138.0,0.00025661,2]
[313752893,1707671444240,-453.0,0.00025661,2]
[313752894,1707671444251,-443.0,0.00025661,2]
[313752895,1707671444261,-1519.81,0.00025686,2]
[313752896,1707671444270,-8154.0,0.00025745,2]
[313752897,1707671444279,-2428.53,0.00025745,2]
[313752898,1707671444288,-2944.578,0.00025745,2]
[313752899,1707671444297,-2287.0,0.00025745,2]
[313752900,1707671444307,-4205.0,0.00025745,2]
[313752901,1707671444316,-7407.0,0.00025745,2]
[313752902,1707671444325,-19823.0,0.00025745,2]
[313752903,1707671444334,-2335.604,0.00025745,2]
[313752904,1707671444345,-1036.0,0.00025745,2]
[313752905,1707671444355,-152.011,0.00025745,2]
[313752906,1707671444364,-500.0,0.000258,2]
[313752907,1707671444375,-154.60172405,0.00025815,2]
[313752908,1707671444384,-205.0,0.00025903,7]
[313752909,1707671444393,-152.94872527,0.0002615,3]
[313752910,1707671444402,-587.0,0.0002654,2]
[313752911,1707671444411,-154.60172405,0.0002694,2]
[313752912,1707671444423,-172.6,0.0002696,2]
[313752913,1707671444432,-418.42905911,0.00027,2]
[313752914,1707671444441,-1300.0,0.00027,3]
[313752915,1707671444451,-2012.04873316,0.00027,2]
[313752916,1707671444459,-150.0,0.00027014,2]
[313752917,1707671444470,-150.0,0.00027014,2]
[313752918,1707671444479,-150.0,0.00027014,2]
[313752919,1707671444488,-151.238,0.00027014,2]
[313752921,1707671444497,-151.358,0.00027014,2]
[313752922,1707671444506,-150.452,0.00027014,2]
[313752923,1707671444514,-209.974,0.00027014,2]
[313752924,1707671444523,-151.609,0.00027014,2]
[313752925,1707671444532,-150.0,0.00027014,2]
[313752926,1707671444541,-181.629,0.00027014,2]
[313752927,1707671444550,-205.907,0.00027014,2]
[313752928,1707671444560,-2500.0,0.00027111,2]
[313752929,1707671444569,-3394.28,0.00027123,2]
[313752930,1707671444578,-397.0,0.00027193,2]
[313752932,1707671444586,-220.615,0.00027193,2]
[313752933,1707671444595,-1367.0,0.00027193,2]
[313752934,1707671444604,-861.0,0.00027193,2]
[313752935,1707671444613,-2831.0,0.00027193,2]
[313752936,1707671444622,-952.0,0.00027193,2]
[313752937,1707671444631,-1985.564,0.00027193,2]
[313752938,1707671444640,-1253.0,0.00027193,2]
[313752939,1707671444649,-734.063,0.00027193,2]
[313752940,1707671444658,-1232.0,0.00027193,2]
[313752941,1707671444669,-429.0,0.00027193,2]
[313752942,1707671444679,-167.15,0.00027297,2]
[313752943,1707671444689,-1519.81,0.0002733,2]
[313752944,1707671444697,-2737.89925924,0.0002734,2]
[313752945,1707671444706,-304.38038228,0.00027397,5]
[313752946,1707671444715,-155.0,0.00027397,2]
[313752947,1707671444724,-150.0,0.00027397,2]
[313752948,1707671444733,-11799.21,0.00027397,2]
[313752949,1707671444742,-39471.7,0.00027397,2]
[313752950,1707671444751,-14593.65,0.00027397,2]
[313752951,1707671444759,-1339.21,0.00027397,2]
[313752952,1707671444769,-11868.17,0.00027397,2]
[313752953,1707671444779,-5494.53,0.00027397,2]
[313752954,1707671444789,-3001.88,0.00027397,2]
[313752955,1707671444798,-1077.05,0.00027397,2]
[313752956,1707671444806,-159.0,0.000274,5]
[313752957,1707671444816,-500.0,0.000274,2]
[313752958,1707671444825,-500.0,0.000274,7]
[313752959,1707671444834,-500.0,0.000274,7]
[313752960,1707671444843,-500.0,0.000274,7]
[313752961,1707671444852,-500.0,0.000274,7]
[313752962,1707671444861,-500.0,0.000274,7]
[313752963,1707671444871,-500.0,0.000274,7]
[313752964,1707671444881,-500.0,0.000274,7]
[313752965,1707671444891,-500.0,0.000274,7]
[313752966,1707671444900,-500.0,0.000274,7]
[313752967,1707671444909,-500.0,0.000274,7]
[313752968,1707671444920,-500.0,0.000274,7]
[313752969,1707671444929,-500.0,0.000274,7]
[313752970,1707671444938,-500.0,0.000274,7]
[313752971,1707671444947,-500.0,0.000274,7]
[313752972,1707671444957,-500.0,0.000274,7]
[313752973,1707671444966,-500.0,0.000274,7]
[313752974,1707671444975,-500.0,0.000274,7]
[313752975,1707671444983,-500.0,0.000274,7]
[313752976,1707671444993,-500.0,0.000274,7]
[313752977,1707671445002,-366.0,0.000274,7]
[313752978,1707671445011,-511.84,0.00027428,2]
[313752979,1707671445020,-11799.21,0.00027556,2]
[313752980,1707671445029,-162.54,0.00027635,2]
[313752981,1707671445038,-350.0,0.00027669,2]
[313752982,1707671445047,-500.0,0.00027669,2]
[313752983,1707671445056,-500.0,0.00027669,2]
[313752984,1707671445065,-500.0,0.00027669,2]
[313752985,1707671445074,-500.0,0.00027669,2]
[313752986,1707671445085,-500.0,0.00027669,2]
[313752987,1707671445094,-500.0,0.00027669,2]
[313752988,1707671445103,-500.0,0.00027669,2]
[313752989,1707671445112,-500.0,0.00027669,2]
[313752990,1707671445121,-500.0,0.00027669,2]
[313752991,1707671445131,-500.0,0.00027669,2]
[313752992,1707671445140,-3452.41633939,0.00027669,4]
[313752993,1707671445149,-1742.9309013,0.00027669,4]
[313752994,1707671445159,-1795.89719176,0.00027669,4]
[313752995,1707671445169,-18370.06578479,0.00027669,6]
[313752996,1707671445178,-1000.0,0.00027669,7]
[313752997,1707671445187,-1285.34484749,0.00027669,4]
[313752998,1707671445196,-6196.1384249,0.00027669,5]
[313752999,1707671445205,-4192.9549381,0.00027669,4]
[313753000,1707671445214,-3459.42256818,0.00027669,5]
[313753001,1707671445223,-5041.28224202,0.00027669,5]
[313753002,1707671445232,-172.04190383,0.00027697,4]
[313753003,1707671445241,-205.0,0.00027698,10]
[313753004,1707671445251,-11799.21,0.00027714,2]
[313753005,1707671445260,-2145.65093755,0.00027725,4]
[313753006,1707671445269,-5000.0,0.00027727,2]
[313753007,1707671445278,-860.16014791,0.00027775,2]
[313753008,1707671445287,-1000.0,0.00027807,7]
[313753009,1707671445296,-832.46680144,0.00027807,2]
[313753010,1707671445305,-237109.28406831,0.00027872,2]
[313753011,1707671445314,-11799.21,0.00027872,2]
[313753012,1707671445323,-150.0,0.00027898,2]
[313753013,1707671445332,-150.0,0.00027945,2]
[313753014,1707671445340,-32183.28384154,0.00027945,2]
[313753015,1707671445350,-245.96,0.00027992,2]
[313753016,1707671445359,-968.65830379,0.00028,2]
[313753017,1707671445368,-328975.82937004,0.00028,2]
[313753018,1707671445377,-14755.89165741,0.00028,2]
[313753019,1707671445386,-295.11783315,0.00028,2]
[313753020,1707671445395,-200.0,0.00028,2]
[313753021,1707671445404,-11799.21,0.0002803,2]
[313753022,1707671445413,-154.60172405,0.00028066,2]
[313753023,1707671445423,-152.75661,0.00028178,2]
[313753024,1707671445433,-153.88584178,0.00028178,2]
[313753025,1707671445442,-11799.21,0.00028189,2]
[313753026,1707671445452,-1000.0,0.000282,2]
[313753027,1707671445461,-754.04,0.00028275,2]
[313753028,1707671445470,-11799.21,0.00028347,2]
[313753029,1707671445479,-150.0,0.00028493,2]
[313753030,1707671445488,-11799.21,0.00028505,2]
[313753031,1707671445497,-1946.0,0.00028661,2]
[313753032,1707671445506,-237.0,0.00028661,2]
[313753033,1707671445515,-1003.0,0.00028661,2]
[313753034,1707671445524,-859.0,0.00028661,2]
[313753035,1707671445533,-150.0,0.00028661,2]
[313753036,1707671445542,-321.0,0.00028661,2]
[313753037,1707671445550,-1138.0,0.00028661,2]
[313753038,1707671445559,-453.0,0.00028661,2]
[313753039,1707671445569,-343.0,0.00028661,2]
[313753040,1707671445578,-11799.21,0.00028664,2]
[313753041,1707671445587,-8154.0,0.00028745,2]
[313753042,1707671445596,-2923.0,0.00028745,2]
[313753043,1707671445605,-2287.0,0.00028745,2]
[313753044,1707671445614,-4205.0,0.00028745,2]
[313753045,1707671445623,-1430.996,0.00028745,2]
[313753046,1707671445632,-4940.717,0.00028745,2]
[313753047,1707671445641,-1036.0,0.00028745,2]
[313753048,1707671445650,-155.0,0.00028767,2]
[313753049,1707671445659,-11799.21,0.00028822,2]
[313753051,1707671445670,-563.0,0.00028826,2]
[313753052,1707671445679,-1519.81,0.00028973,2]
[313753053,1707671445689,-157.23753901,0.00028999,2]
[313753054,1707671445699,-1350.0,0.00029,3]
[313753055,1707671445709,-150.0,0.00029041,2]
[313753056,1707671445719,-154.60172405,0.00029191,2]
[313753057,1707671445728,-154.9,0.000292,2]
[313753058,1707671445738,-2664.31406844,0.00029333,28]
[313753059,1707671445747,-152.94872527,0.000294,4]
[313753060,1707671445755,-205.0,0.00029492,13]
[313753061,1707671445765,-228.36245335,0.000295,3]
[313753062,1707671445777,-168.26804447,0.00029589,2]
[313753063,1707671445786,-200.0,0.00029651,2]
[313753064,1707671445795,-800.0,0.00029651,2]
[313753065,1707671445805,-511.84,0.00029692,2]
[313753066,1707671445813,-200.0,0.000297,2]
[313753067,1707671445823,-745.6322082,0.0002998,120]
[313753068,1707671445833,-500.0,0.00029999,2]
[313753069,1707671445842,-435.27278849,0.00029999,2]
[313753070,1707671445853,-272.0868796,0.0003,5]
[313753071,1707671445862,-585.82753942,0.0003,2]
[313753072,1707671445871,-3000.0,0.0003,2]
[313753073,1707671445881,-220.36678367,0.0003,4]
[313753074,1707671445890,-155.0,0.0003,2]
[313753075,1707671445900,-405.61194202,0.0003,4]
[313753076,1707671445909,-9690.3204777,0.0003,2]
[313753077,1707671445920,-4586.91102606,0.0003,4]
[313753088,1707671446147,-208.41561007,0.0003,30]
[313753090,1707671446167,-155.0,0.0003,4]
[313753091,1707671446176,-155.0,0.0003,4]
[313753092,1707671446186,-1974.21330849,0.0003,4]
[313753093,1707671446195,-299.1962773,0.0003,4]
[313753094,1707671446205,-448.82644289,0.0003,4]
[313753095,1707671446214,-159.13404187,0.0003,4]
[313753096,1707671446223,-910.50079798,0.0003,4]
[313753097,1707671446232,-818.72184633,0.0003,4]
[313753098,1707671446242,-1817.02005498,0.0003,4]
[313753099,1707671446251,-312.59099167,0.0003,30]
[313753100,1707671446260,-100000.0,0.0003,5]
[313753101,1707671446270,-3000.0,0.0003,2]
[313753102,1707671446279,-153.74,0.0003,2]
[313753103,1707671446288,-153.74,0.0003,2]
[313753104,1707671446297,-153.74,0.0003,2]
[313753105,1707671446306,-933.58287836,0.0003,3]
[313753106,1707671446315,-500.0,0.0003,2]
[313753107,1707671446324,-4000.0,0.0003,2]
[313753108,1707671446334,-3000.0,0.0003001,2]
[313753109,1707671446344,-150.0,0.00030014,2]
[313753110,1707671446353,-150.0,0.00030014,2]
[313753111,1707671446363,-150.0,0.00030014,2]
[313753112,1707671446372,-150.0,0.00030014,2]
[313753113,1707671446383,-150.0,0.00030014,2]
[313753114,1707671446393,-150.0,0.00030014,2]
[313753115,1707671446401,-5469.225606,0.0003002,2]
[313753116,1707671446410,-293.44768448,0.00030135,4]
[313753117,1707671446420,-150.0,0.00030137,2]
[313753118,1707671446429,-155.0,0.00030137,2]
[313753119,1707671446438,-397.0,0.00030193,2]
[313753120,1707671446448,-1367.0,0.00030193,2]
[313753121,1707671446458,-841.0,0.00030193,2]
[313753122,1707671446467,-2831.0,0.00030193,2]
[313753123,1707671446476,-952.0,0.00030193,2]
[313753124,1707671446485,-1858.0,0.00030193,2]
[313753125,1707671446493,-1253.0,0.00030193,2]
[313753126,1707671446503,-1232.0,0.00030193,2]
[313753127,1707671446512,-429.0,0.00030193,2]
[313753128,1707671446521,-200.0,0.000302,2]
[313753129,1707671446531,-154.60172405,0.00030316,2]